[Event "*** Titled Tuesday 3|2 Blitz"]
[Site "Chess.com"]
[Date "2016.08.02"]
[Round "5"]
[White "Newlight1"]
[Black "Evgeny_Levin"]
[Result "0-1"]
[WhiteElo "2402"]
[BlackElo "2655"]
[TimeControl "180+2"]
[EndTime "12:07:48 PDT"]
[Termination "Evgeny_Levin won by resignation"]

1. e4 {[%clk 0:03:01.9]} 1... Nf6 {[%clk 0:02:59.8]} 2. e5 {[%clk 0:03:02.5]}
2... Nd5 {[%clk 0:03:00.9]} 3. c4 {[%clk 0:03:04.1]} 3... Nb6 {[%clk 0:03:01.5]}
4. d4 {[%clk 0:03:05.8]} 4... d6 {[%clk 0:03:02.8]} 5. f4 {[%clk 0:03:07.4]}
5... dxe5 {[%clk 0:03:03.5]} 6. fxe5 {[%clk 0:03:09.3]} 6... Bf5 {[%clk
0:03:04.4]} 7. Nc3 {[%clk 0:03:08.8]} 7... e6 {[%clk 0:03:05.6]} 8. Be3 {[%clk
0:03:08.5]} 8... Nc6 {[%clk 0:03:03.7]} 9. Nf3 {[%clk 0:03:05.6]} 9... Be7
{[%clk 0:03:04.3]} 10. Be2 {[%clk 0:02:53.6]} 10... O-O {[%clk 0:03:03.4]} 11.
O-O {[%clk 0:02:53.7]} 11... f6 {[%clk 0:03:04.6]} 12. exf6 {[%clk 0:02:11]}
12... Bxf6 {[%clk 0:03:06.5]} 13. Qd2 {[%clk 0:02:07.8]} 13... Qe8 {[%clk
0:03:05.4]} 14. b3 {[%clk 0:02:07.1]} 14... Rd8 {[%clk 0:03:05.8]} 15. c5 {[%clk
0:02:03.4]} 15... Nd5 {[%clk 0:02:57.1]} 16. Nxd5 {[%clk 0:01:51.1]} 16... exd5
{[%clk 0:02:59]} 17. Bc4 {[%clk 0:01:50.8]} 17... dxc4 {[%clk 0:02:58.7]} 18.
bxc4 {[%clk 0:01:42.8]} 18... Bg4 {[%clk 0:02:36.6]} 19. Kh1 {[%clk 0:01:35]}
19... Bxf3 {[%clk 0:02:31.9]} 20. Rxf3 {[%clk 0:01:36.9]} 20... Bxd4 {[%clk
0:02:19.1]} 21. Rxf8+ {[%clk 0:01:34.6]} 21... Qxf8 {[%clk 0:02:21]} 22. Bxd4
{[%clk 0:01:33.6]} 22... Rxd4 {[%clk 0:02:21.1]} 23. Qb2 {[%clk 0:01:32.2]}
23... Qd8 {[%clk 0:02:09.3]} 24. h3 {[%clk 0:01:30.3]} 24... Rd1+ {[%clk
0:02:05.6]} 25. Rxd1 {[%clk 0:01:27.1]} 25... Qxd1+ {[%clk 0:02:07.5]} 26. Kh2
{[%clk 0:01:28.8]} 26... b6 {[%clk 0:02:05.2]} 27. Qb5 {[%clk 0:01:26]} 27...
Qd7 {[%clk 0:02:03]} 28. cxb6 {[%clk 0:01:11.9]} 28... Qd6+ {[%clk 0:02:02.8]}
29. Kh1 {[%clk 0:01:12.6]} 29... axb6 {[%clk 0:02:03.1]} 30. a4 {[%clk
0:01:08.9]} 30... h6 {[%clk 0:02:01.4]} 31. Qb3 {[%clk 0:01:07]} 31... Nd4
{[%clk 0:01:57.3]} 32. Qe3 {[%clk 0:00:59.4]} 32... Nf5 {[%clk 0:01:51.7]} 33.
Qe8+ {[%clk 0:00:54.3]} 33... Kh7 {[%clk 0:01:52.1]} 34. Qe4 {[%clk 0:00:55.8]}
34... Qg6 {[%clk 0:01:51.8]} 35. Qe1 {[%clk 0:00:53.7]} 35... Qc6 {[%clk
0:01:27.6]} 36. Qb1 {[%clk 0:00:49.6]} 36... Qg6 {[%clk 0:01:26.8]} 37. Qe1
{[%clk 0:00:50.2]} 37... Nd6 {[%clk 0:01:23.2]} 38. c5 {[%clk 0:00:49.2]} 38...
Ne4 {[%clk 0:01:23]} 39. cxb6 {[%clk 0:00:48]} 39... cxb6 {[%clk 0:01:24.9]} 40.
a5 {[%clk 0:00:46.3]} 40... bxa5 {[%clk 0:01:22.4]} 41. Qxa5 {[%clk 0:00:48]}
41... Qf6 {[%clk 0:01:15]} 42. Qb5 {[%clk 0:00:46.3]} 42... Qf4 {[%clk
0:01:11.9]} 43. Kg1 {[%clk 0:00:39]} 43... Qe3+ {[%clk 0:01:10.1]} 44. Kh2
{[%clk 0:00:36.6]} 44... Qg3+ {[%clk 0:01:09.4]} 45. Kg1 {[%clk 0:00:33.3]}
45... Qf4 {[%clk 0:00:50.5]} 46. Qd3 {[%clk 0:00:30.7]} 46... Qf5 {[%clk
0:00:46.9]} 47. g4 {[%clk 0:00:30.3]} 47... Qf2+ {[%clk 0:00:43]} 48. Kh1 {[%clk
0:00:29.4]} 48... Qf4 {[%clk 0:00:42.4]} 49. Kg1 {[%clk 0:00:30.7]} 49... Qg3+
{[%clk 0:00:34.3]} 50. Qxg3 {[%clk 0:00:31.2]} 50... Nxg3 {[%clk 0:00:36.2]} 51.
Kg2 {[%clk 0:00:33.1]} 51... Ne4 {[%clk 0:00:36.8]} 52. h4 {[%clk 0:00:31.4]}
52... Kg6 {[%clk 0:00:36.9]} 53. Kf3 {[%clk 0:00:31]} 53... Nd6 {[%clk
0:00:37.2]} 54. Kf4 {[%clk 0:00:31.4]} 54... Nf7 {[%clk 0:00:38.1]} 55. Kg3
{[%clk 0:00:29.7]} 55... Kf6 {[%clk 0:00:38.5]} 56. Kf4 {[%clk 0:00:30.4]} 56...
Ke6 {[%clk 0:00:37]} 57. g5 {[%clk 0:00:29.8]} 57... hxg5+ {[%clk 0:00:35.3]}
58. hxg5 {[%clk 0:00:30.2]} 58... g6 {[%clk 0:00:36.6]} 59. Kg4 {[%clk
0:00:26.8]} 59... Ke5 {[%clk 0:00:37.5]} 60. Kg3 {[%clk 0:00:25.4]} 60... Nxg5
{[%clk 0:00:37.2]} 61. Kg4 {[%clk 0:00:26.1]} 61... Ne6 {[%clk 0:00:38.2]} 0-1

[Event "*** Titled Tuesday 3|2 Blitz"]
[Site "Chess.com"]
[Date "2016.08.02"]
[Round "5"]
[White "Nadtkins"]
[Black "dabee"]
[Result "0-1"]
[WhiteElo "2442"]
[BlackElo "2429"]
[TimeControl "180+2"]
[EndTime "12:08:04 PDT"]
[Termination "dabee won by checkmate"]

1. d4 {[%clk 0:02:56.5]} 1... e6 {[%clk 0:03:00.5]} 2. Bf4 {[%clk 0:02:56.6]}
2... c5 {[%clk 0:02:59.8]} 3. e3 {[%clk 0:02:57.6]} 3... Qb6 {[%clk 0:02:58.4]}
4. Nc3 {[%clk 0:02:57.3]} 4... a6 {[%clk 0:02:40.3]} 5. d5 {[%clk 0:02:46.8]}
5... d6 {[%clk 0:02:31.2]} 6. Bc4 {[%clk 0:02:25.4]} 6... e5 {[%clk 0:02:27.1]}
7. Bg3 {[%clk 0:02:16.4]} 7... Qxb2 {[%clk 0:02:21.8]} 8. Nge2 {[%clk
0:02:17.2]} 8... Nf6 {[%clk 0:02:09.1]} 9. O-O {[%clk 0:02:12.1]} 9... Qb4
{[%clk 0:02:06.2]} 10. Qd3 {[%clk 0:01:57.9]} 10... b5 {[%clk 0:01:48.3]} 11.
Nxb5 {[%clk 0:01:55.5]} 11... axb5 {[%clk 0:01:47.4]} 12. Bxb5+ {[%clk
0:01:57.4]} 12... Bd7 {[%clk 0:01:46.1]} 13. Nc3 {[%clk 0:01:24.7]} 13... e4
{[%clk 0:01:21.6]} 14. Qd2 {[%clk 0:01:12.2]} 14... Ra3 {[%clk 0:01:09.2]} 15.
Bxd7+ {[%clk 0:00:54.8]} 15... Nbxd7 {[%clk 0:01:07.4]} 16. Nb1 {[%clk
0:00:55.8]} 16... Qxd2 {[%clk 0:01:06]} 17. Nxd2 {[%clk 0:00:57.7]} 17... Ra4
{[%clk 0:01:00.6]} 18. c4 {[%clk 0:00:48.6]} 18... Be7 {[%clk 0:01:00.8]} 19.
Rfb1 {[%clk 0:00:50]} 19... O-O {[%clk 0:01:00.5]} 20. Rb2 {[%clk 0:00:45.1]}
20... Rb8 {[%clk 0:00:58.4]} 21. Rab1 {[%clk 0:00:45.8]} 21... Rxb2 {[%clk
0:00:57.8]} 22. Rxb2 {[%clk 0:00:47.7]} 22... Rb4 {[%clk 0:00:56.4]} 23. Rc2
{[%clk 0:00:46.3]} 23... h6 {[%clk 0:00:53.6]} 24. f3 {[%clk 0:00:47.3]} 24...
exf3 {[%clk 0:00:44.4]} 25. gxf3 {[%clk 0:00:49.2]} 25... Ne5 {[%clk 0:00:44.8]}
26. Bxe5 {[%clk 0:00:45.4]} 26... dxe5 {[%clk 0:00:44.8]} 27. Kf2 {[%clk
0:00:46]} 27... Bd6 {[%clk 0:00:43]} 28. Ke2 {[%clk 0:00:46.7]} 28... e4 {[%clk
0:00:38.8]} 29. f4 {[%clk 0:00:45.7]} 29... g5 {[%clk 0:00:37.5]} 30. a3 {[%clk
0:00:44.8]} 30... Ra4 {[%clk 0:00:35.3]} 31. fxg5 {[%clk 0:00:38.1]} 31... hxg5
{[%clk 0:00:34.8]} 32. Ra2 {[%clk 0:00:40]} 32... Bxh2 {[%clk 0:00:32.6]} 33.
Nb1 {[%clk 0:00:41.2]} 33... Be5 {[%clk 0:00:32.1]} 34. Kf2 {[%clk 0:00:42.5]}
34... Ne8 {[%clk 0:00:29.9]} 35. Nd2 {[%clk 0:00:43.3]} 35... Nd6 {[%clk
0:00:30.6]} 36. Kg2 {[%clk 0:00:44.7]} 36... f5 {[%clk 0:00:30.8]} 37. Kh3
{[%clk 0:00:45.8]} 37... Nxc4 {[%clk 0:00:28.4]} 38. Nb3 {[%clk 0:00:46.4]}
38... Rxa3 {[%clk 0:00:25.4]} 39. Rxa3 {[%clk 0:00:46.7]} 39... Nxa3 {[%clk
0:00:25.7]} 40. Nxc5 {[%clk 0:00:48.6]} 40... Kf7 {[%clk 0:00:23.7]} 41. Ne6
{[%clk 0:00:49.5]} 41... Kf6 {[%clk 0:00:22.5]} 42. Nf8 {[%clk 0:00:49.6]} 42...
Nc4 {[%clk 0:00:21.2]} 43. Nd7+ {[%clk 0:00:50.2]} 43... Ke7 {[%clk 0:00:22.3]}
44. Nc5 {[%clk 0:00:46.7]} 44... Nxe3 {[%clk 0:00:21]} 45. d6+ {[%clk 0:00:48]}
45... Kxd6 {[%clk 0:00:21.4]} 46. Nxe4+ {[%clk 0:00:49]} 46... Kd5 {[%clk
0:00:15.1]} 47. Nxg5 {[%clk 0:00:50.3]} 47... f4 {[%clk 0:00:15.7]} 48. Nf3
{[%clk 0:00:43.7]} 48... Ke4 {[%clk 0:00:16.1]} 49. Nd2+ {[%clk 0:00:44.9]}
49... Kd3 {[%clk 0:00:15.9]} 50. Nf3 {[%clk 0:00:46.1]} 50... Bf6 {[%clk
0:00:16.5]} 51. Kh2 {[%clk 0:00:29.1]} 51... Ke2 {[%clk 0:00:17]} 52. Ng1+
{[%clk 0:00:30.5]} 52... Kf1 {[%clk 0:00:17.2]} 53. Nh3 {[%clk 0:00:28.8]} 53...
Ng4+ {[%clk 0:00:17.5]} 54. Kh1 {[%clk 0:00:29]} 54... f3 {[%clk 0:00:18.3]} 55.
Ng1 {[%clk 0:00:27.4]} 55... Nf2+ {[%clk 0:00:17.9]} 56. Kh2 {[%clk 0:00:28.8]}
56... Be5# {[%clk 0:00:19.1]} 0-1

[Event "*** Titled Tuesday 3|2 Blitz"]
[Site "Chess.com"]
[Date "2016.08.02"]
[Round "5"]
[White "eltenedor"]
[Black "MFBerna"]
[Result "0-1"]
[WhiteElo "2033"]
[BlackElo "2155"]
[TimeControl "180+2"]
[EndTime "12:08:04 PDT"]
[Termination "MFBerna won on time"]

1. c4 {[%clk 0:03:01.9]} 1... e6 {[%clk 0:03:00.3]} 2. d4 {[%clk 0:03:00.5]}
2... d5 {[%clk 0:03:02.2]} 3. g3 {[%clk 0:02:59.9]} 3... Nf6 {[%clk 0:02:57.4]}
4. Bg2 {[%clk 0:02:59.3]} 4... Be7 {[%clk 0:02:57.1]} 5. Nf3 {[%clk 0:02:58.6]}
5... O-O {[%clk 0:02:58.5]} 6. Nbd2 {[%clk 0:02:55]} 6... c5 {[%clk 0:02:57.8]}
7. dxc5 {[%clk 0:02:49.6]} 7... Bxc5 {[%clk 0:02:59.7]} 8. O-O {[%clk
0:02:47.2]} 8... Nc6 {[%clk 0:02:59.9]} 9. a3 {[%clk 0:02:47.1]} 9... a5 {[%clk
0:02:59.7]} 10. cxd5 {[%clk 0:02:43.8]} 10... exd5 {[%clk 0:02:58.7]} 11. Nb3
{[%clk 0:02:37.5]} 11... Bb6 {[%clk 0:02:57.6]} 12. Bg5 {[%clk 0:02:26]} 12...
h6 {[%clk 0:02:53.1]} 13. Bf4 {[%clk 0:02:23.5]} 13... Ne4 {[%clk 0:02:47.3]}
14. Nbd4 {[%clk 0:02:22.6]} 14... Nxd4 {[%clk 0:02:45.6]} 15. Nxd4 {[%clk
0:02:22.6]} 15... Qf6 {[%clk 0:02:44.2]} 16. Be3 {[%clk 0:02:22.6]} 16... Bd7
{[%clk 0:02:38.8]} 17. Nc2 {[%clk 0:02:17]} 17... Bxe3 {[%clk 0:01:23]} 18. Nxe3
{[%clk 0:01:05.6]} 18... Bc6 {[%clk 0:01:19.4]} 19. Rb1 {[%clk 0:00:51.4]} 19...
Rfd8 {[%clk 0:01:16.2]} 20. Qd3 {[%clk 0:00:50.4]} 20... Nc5 {[%clk 0:00:56]}
21. Qc2 {[%clk 0:00:40.6]} 21... Ne6 {[%clk 0:00:48.2]} 22. Nf5 {[%clk
0:00:35.8]} 22... Rac8 {[%clk 0:00:30.6]} 23. Rbc1 {[%clk 0:00:35.8]} 23... d4
{[%clk 0:00:30.5]} 24. Bxc6 {[%clk 0:00:32.1]} 24... Rxc6 {[%clk 0:00:32.4]} 25.
Qd3 {[%clk 0:00:31.2]} 25... Nc5 {[%clk 0:00:29]} 26. Qb1 {[%clk 0:00:30.8]}
26... d3 {[%clk 0:00:26.1]} 27. Ne3 {[%clk 0:00:22.8]} 27... dxe2 {[%clk
0:00:21]} 28. Rfe1 {[%clk 0:00:23.7]} 28... Rd2 {[%clk 0:00:18.1]} 29. Rc2
{[%clk 0:00:19.3]} 29... Qd4 {[%clk 0:00:10.9]} 30. Rxe2 {[%clk 0:00:15.7]}
30... Rxe2 {[%clk 0:00:08]} 31. Rxe2 {[%clk 0:00:12.4]} 31... Nd3 {[%clk
0:00:09.4]} 32. Qa2 {[%clk 0:00:05.6]} 32... Rc1+ {[%clk 0:00:08.7]} 33. Nf1
{[%clk 0:00:05.3]} 33... Ne5 {[%clk 0:00:05]} 34. Qb3 {[%clk 0:00:04.8]} 34...
h5 {[%clk 0:00:04.2]} 35. Qe3 {[%clk 0:00:04.8]} 35... Qxe3 {[%clk 0:00:04.1]}
36. Rxe3 {[%clk 0:00:06.7]} 36... Nc4 {[%clk 0:00:05.2]} 37. Re2 {[%clk
0:00:06.9]} 37... Rb1 {[%clk 0:00:04.7]} 38. Kg2 {[%clk 0:00:06.4]} 38... Nxb2
{[%clk 0:00:05.5]} 39. Nd2 {[%clk 0:00:06.8]} 39... Ra1 {[%clk 0:00:05.2]} 40.
Ne4 {[%clk 0:00:06.7]} 40... Nc4 {[%clk 0:00:06]} 41. Ng5 {[%clk 0:00:05.1]}
41... g6 {[%clk 0:00:07.2]} 42. Re8+ {[%clk 0:00:05.4]} 42... Kg7 {[%clk
0:00:08.3]} 43. Re7 {[%clk 0:00:06.3]} 43... Nd6 {[%clk 0:00:09.5]} 44. Rd7
{[%clk 0:00:06.8]} 44... Kf6 {[%clk 0:00:08.7]} 45. Nh7+ {[%clk 0:00:05]} 45...
Ke6 {[%clk 0:00:09.4]} 46. Rc7 {[%clk 0:00:05.3]} 46... Rxa3 {[%clk 0:00:08.5]}
47. Nf8+ {[%clk 0:00:05.6]} 47... Kd5 {[%clk 0:00:09.6]} 48. Rd7 {[%clk
0:00:04.2]} 48... Kc6 {[%clk 0:00:10.3]} 49. Re7 {[%clk 0:00:04.1]} 49... b5
{[%clk 0:00:09.9]} 50. Nd7 {[%clk 0:00:03.8]} 50... b4 {[%clk 0:00:10.7]} 51.
Ne5+ {[%clk 0:00:04.6]} 51... Kd5 {[%clk 0:00:11.8]} 0-1

[Event "*** Titled Tuesday 3|2 Blitz"]
[Site "Chess.com"]
[Date "2016.08.02"]
[Round "5"]
[White "diokletian"]
[Black "Schemato"]
[Result "0-1"]
[WhiteElo "2434"]
[BlackElo "2249"]
[TimeControl "180+2"]
[EndTime "12:08:07 PDT"]
[Termination "Schemato won by resignation"]

1. d4 {[%clk 0:03:01.9]} 1... e6 {[%clk 0:02:57]} 2. e4 {[%clk 0:03:02]} 2... d5
{[%clk 0:02:56.8]} 3. Nd2 {[%clk 0:03:01.4]} 3... Be7 {[%clk 0:02:57.1]} 4. c3
{[%clk 0:03:00]} 4... Nf6 {[%clk 0:02:53.4]} 5. e5 {[%clk 0:03:00.3]} 5... Nfd7
{[%clk 0:02:54.6]} 6. f4 {[%clk 0:02:57.4]} 6... c5 {[%clk 0:02:52.2]} 7. Ndf3
{[%clk 0:02:57.4]} 7... b6 {[%clk 0:02:51.7]} 8. Bd3 {[%clk 0:02:57]} 8... Ba6
{[%clk 0:02:51.4]} 9. Bc2 {[%clk 0:02:52.9]} 9... Nc6 {[%clk 0:02:48.8]} 10. Ne2
{[%clk 0:02:53.1]} 10... f5 {[%clk 0:02:26.3]} 11. Be3 {[%clk 0:02:45.4]} 11...
O-O {[%clk 0:02:14.7]} 12. Rg1 {[%clk 0:02:42]} 12... Kh8 {[%clk 0:02:03.9]} 13.
g4 {[%clk 0:02:42.1]} 13... g6 {[%clk 0:02:04.9]} 14. Kf2 {[%clk 0:02:41.9]}
14... Bxe2 {[%clk 0:02:01.3]} 15. Qxe2 {[%clk 0:02:41.9]} 15... Bh4+ {[%clk
0:01:58.2]} 16. Kf1 {[%clk 0:02:36.6]} 16... cxd4 {[%clk 0:01:57.1]} 17. cxd4
{[%clk 0:02:36.8]} 17... Be7 {[%clk 0:01:45.4]} 18. gxf5 {[%clk 0:02:36.2]}
18... gxf5 {[%clk 0:01:45.4]} 19. Kg2 {[%clk 0:02:29.5]} 19... Nb4 {[%clk
0:01:37.5]} 20. Ba4 {[%clk 0:02:27.5]} 20... a6 {[%clk 0:01:31.1]} 21. a3 {[%clk
0:02:28.4]} 21... Rg8+ {[%clk 0:01:17.9]} 22. Kh1 {[%clk 0:02:28.2]} 22... Rxg1+
{[%clk 0:01:18.8]} 23. Rxg1 {[%clk 0:02:27.5]} 23... b5 {[%clk 0:01:19.6]} 24.
Bd1 {[%clk 0:02:26]} 24... Nc6 {[%clk 0:01:16.6]} 25. Qg2 {[%clk 0:02:25.9]}
25... Qf8 {[%clk 0:01:16.1]} 26. Ng5 {[%clk 0:02:19.7]} 26... Bxg5 {[%clk
0:01:13.9]} 27. Qxg5 {[%clk 0:02:19.8]} 27... Qf7 {[%clk 0:01:15.1]} 28. Bh5
{[%clk 0:02:17.1]} 28... Qe7 {[%clk 0:01:11.2]} 29. Qxe7 {[%clk 0:02:03.1]}
29... Nxe7 {[%clk 0:01:11.5]} 30. Bf7 {[%clk 0:02:03.4]} 30... Nf8 {[%clk
0:01:07.1]} 31. Bd2 {[%clk 0:01:57]} 31... a5 {[%clk 0:01:05.1]} 32. Be1 {[%clk
0:01:55.4]} 32... Neg6 {[%clk 0:00:58.3]} 33. h4 {[%clk 0:01:18.1]} 33... Kg7
{[%clk 0:00:47.5]} 34. Bxg6 {[%clk 0:01:17.3]} 34... hxg6 {[%clk 0:00:40.4]} 35.
Rg2 {[%clk 0:01:12.5]} 35... Rc8 {[%clk 0:00:27.9]} 36. Bxa5 {[%clk 0:01:12.2]}
36... Rc1+ {[%clk 0:00:26.3]} 37. Kh2 {[%clk 0:01:11.8]} 37... Rf1 {[%clk
0:00:23.2]} 38. Bd2 {[%clk 0:01:09.9]} 38... Rf3 {[%clk 0:00:18.5]} 39. Re2
{[%clk 0:01:01.7]} 39... Rd3 {[%clk 0:00:19.3]} 40. Bc3 {[%clk 0:01:00.1]} 40...
Rf3 {[%clk 0:00:19.1]} 41. Bd2 {[%clk 0:01:00.7]} 41... Rd3 {[%clk 0:00:20.3]}
42. Be3 {[%clk 0:01:01.9]} 42... Nd7 {[%clk 0:00:18.4]} 43. Kg2 {[%clk
0:00:40.4]} 43... Nb6 {[%clk 0:00:19.2]} 44. Bf2 {[%clk 0:00:40.5]} 44... Nc4
{[%clk 0:00:18.8]} 45. Rc2 {[%clk 0:00:30.2]} 45... Rb3 {[%clk 0:00:19.5]} 46.
Be1 {[%clk 0:00:24.1]} 46... Rxb2 {[%clk 0:00:20.4]} 47. Rxb2 {[%clk 0:00:25.3]}
47... Nxb2 {[%clk 0:00:22.3]} 48. Kf3 {[%clk 0:00:24.2]} 48... Kh6 {[%clk
0:00:19.4]} 49. Kg3 {[%clk 0:00:19.8]} 49... Kh5 {[%clk 0:00:20.1]} 50. Bb4
{[%clk 0:00:20.5]} 50... Nc4 {[%clk 0:00:18.9]} 51. Be7 {[%clk 0:00:21.2]} 51...
Nd2 {[%clk 0:00:18]} 52. Kh3 {[%clk 0:00:16.6]} 52... Ne4 {[%clk 0:00:19.9]} 53.
Bd6 {[%clk 0:00:14.8]} 53... Nc3 {[%clk 0:00:20.6]} 54. Kg3 {[%clk 0:00:07.7]}
54... Ne2+ {[%clk 0:00:21.7]} 55. Kf3 {[%clk 0:00:09.2]} 55... Nxd4+ {[%clk
0:00:23.6]} 56. Ke3 {[%clk 0:00:10.9]} 56... Nc6 {[%clk 0:00:22.5]} 57. Be7
{[%clk 0:00:12.3]} 57... Nxe7 {[%clk 0:00:23.1]} 0-1

[Event "*** Titled Tuesday 3|2 Blitz"]
[Site "Chess.com"]
[Date "2016.08.02"]
[Round "5"]
[White "Bab3s"]
[Black "FearlessKing64"]
[Result "1/2-1/2"]
[WhiteElo "2172"]
[BlackElo "2065"]
[TimeControl "180+2"]
[EndTime "12:08:08 PDT"]
[Termination "Game drawn by repetition"]

1. e4 {[%clk 0:03:01.9]} 1... c5 {[%clk 0:02:58.8]} 2. c3 {[%clk 0:03:01.9]}
2... g6 {[%clk 0:02:58.7]} 3. d4 {[%clk 0:03:02.5]} 3... cxd4 {[%clk 0:02:59.9]}
4. cxd4 {[%clk 0:03:04.4]} 4... d5 {[%clk 0:03:01.1]} 5. Nc3 {[%clk 0:03:05.6]}
5... dxe4 {[%clk 0:03:01.5]} 6. Bc4 {[%clk 0:03:06.2]} 6... Nc6 {[%clk
0:02:53.7]} 7. Qb3 {[%clk 0:02:59.4]} 7... e6 {[%clk 0:02:53.6]} 8. d5 {[%clk
0:02:59.5]} 8... Na5 {[%clk 0:02:35.2]} 9. Bb5+ {[%clk 0:02:48.2]} 9... Bd7
{[%clk 0:02:30.1]} 10. Qa4 {[%clk 0:02:33.9]} 10... b6 {[%clk 0:02:22.6]} 11.
dxe6 {[%clk 0:01:54.6]} 11... fxe6 {[%clk 0:02:20.9]} 12. Qd4 {[%clk 0:01:21.2]}
12... Bxb5 {[%clk 0:01:46.5]} 13. Qxh8 {[%clk 0:01:15.3]} 13... Qd3 {[%clk
0:01:24.4]} 14. Nge2 {[%clk 0:01:02.6]} 14... O-O-O {[%clk 0:00:54]} 15. Qxg8
{[%clk 0:00:31.2]} 15... Bb4 {[%clk 0:00:27.2]} 16. Qxe6+ {[%clk 0:00:24.1]}
16... Bd7 {[%clk 0:00:27.6]} 17. Qe5 {[%clk 0:00:17.2]} 17... Bg4 {[%clk
0:00:13.3]} 18. O-O {[%clk 0:00:07.9]} 18... Bxe2 {[%clk 0:00:06.4]} 19. Nxe2
{[%clk 0:00:07.9]} 19... Qxe2 {[%clk 0:00:08]} 20. Bf4 {[%clk 0:00:07.7]} 20...
Bd6 {[%clk 0:00:06]} 21. Qe6+ {[%clk 0:00:07.9]} 21... Kc7 {[%clk 0:00:06.9]}
22. Rac1+ {[%clk 0:00:08.3]} 22... Nc6 {[%clk 0:00:07.1]} 23. Bxd6+ {[%clk
0:00:07.6]} 23... Rxd6 {[%clk 0:00:07.9]} 24. Qf7+ {[%clk 0:00:08.7]} 24... Rd7
{[%clk 0:00:09]} 25. Qf4+ {[%clk 0:00:09.4]} 25... Kb7 {[%clk 0:00:10.3]} 26.
Rfe1 {[%clk 0:00:09.6]} 26... Qb5 {[%clk 0:00:06.3]} 27. Qxe4 {[%clk 0:00:09.2]}
27... a5 {[%clk 0:00:05.6]} 28. h3 {[%clk 0:00:09.6]} 28... Qd5 {[%clk
0:00:05.5]} 29. Qxd5 {[%clk 0:00:10.3]} 29... Rxd5 {[%clk 0:00:07.4]} 30. Re6
{[%clk 0:00:10.6]} 30... Nd4 {[%clk 0:00:07.7]} 31. Re7+ {[%clk 0:00:11.3]}
31... Ka6 {[%clk 0:00:08.9]} 32. Rcc7 {[%clk 0:00:11.6]} 32... a4 {[%clk
0:00:07.3]} 33. Rxh7 {[%clk 0:00:10]} 33... Kb5 {[%clk 0:00:07.3]} 34. Rhg7
{[%clk 0:00:09.1]} 34... Ne6 {[%clk 0:00:05.6]} 35. Rce7 {[%clk 0:00:09.7]}
35... Nxg7 {[%clk 0:00:05.5]} 36. Rxg7 {[%clk 0:00:11.6]} 36... g5 {[%clk
0:00:05.7]} 37. g3 {[%clk 0:00:10.9]} 37... Kc4 {[%clk 0:00:05.8]} 38. Rc7+
{[%clk 0:00:10.4]} 38... Kb4 {[%clk 0:00:04.9]} 39. Kg2 {[%clk 0:00:10.7]} 39...
Rd2 {[%clk 0:00:05.4]} 40. h4 {[%clk 0:00:07.6]} 40... gxh4 {[%clk 0:00:05.6]}
41. gxh4 {[%clk 0:00:09.5]} 41... Rxb2 {[%clk 0:00:07]} 42. h5 {[%clk
0:00:10.7]} 42... Rd2 {[%clk 0:00:02.9]} 43. h6 {[%clk 0:00:11.3]} 43... Rd8
{[%clk 0:00:04.5]} 44. h7 {[%clk 0:00:11.9]} 44... Ka3 {[%clk 0:00:05.5]} 45.
Rg7 {[%clk 0:00:10.3]} 45... Rh8 {[%clk 0:00:06.3]} 46. f4 {[%clk 0:00:11]}
46... Kxa2 {[%clk 0:00:07.5]} 47. f5 {[%clk 0:00:12.4]} 47... Kb3 {[%clk
0:00:09]} 48. f6 {[%clk 0:00:13.8]} 48... a3 {[%clk 0:00:10.2]} 49. f7 {[%clk
0:00:10.7]} 49... a2 {[%clk 0:00:11]} 50. Rg8 {[%clk 0:00:12.1]} 50... a1=Q
{[%clk 0:00:10.4]} 51. f8=Q {[%clk 0:00:12.8]} 51... Qb2+ {[%clk 0:00:10.2]} 52.
Kg3 {[%clk 0:00:11.9]} 52... Qc3+ {[%clk 0:00:10.5]} 53. Kg2 {[%clk 0:00:12.4]}
53... Qc2+ {[%clk 0:00:11.7]} 54. Kg3 {[%clk 0:00:12.7]} 54... Qc3+ {[%clk
0:00:13.1]} 55. Kg2 {[%clk 0:00:13.3]} 55... Qc2+ {[%clk 0:00:14.6]} 56. Kg3
{[%clk 0:00:14.6]} 56... Qc3+ {[%clk 0:00:13.4]} 57. Kg2 {[%clk 0:00:15.5]}
57... Qc2+ {[%clk 0:00:14.9]} 58. Kg3 {[%clk 0:00:16.7]} 1/2-1/2